[Event "DVM U12 2021-22"]
[Site "Naumburg"]
[Date "2022.03.28"]
[Round "6"]
[White "Sato, Kai Nathan"]
[Black "Moldovan, Tudor"]
[Result "1-0"]
[ECO "B06"]
[WhiteElo "1151"]
[BlackElo "1219"]
[Annotator "COMBH"]
[PlyCount "147"]
[EventDate "2022.03.25"]
[EventType "team-tourn"]
[EventRounds "7"]
[EventCountry "GER"]
[SourceTitle "playchess.com"]
[Source "ChessBase"]
[SourceQuality "1"]
[TimeControl "40/5400+30:1800+30"]

1. e4 {[%emt 0:00:02]} g6 {[%emt 0:00:08]} 2. d4 {[%emt 0:00:06]} Bg7 {[%emt 0:00:06]} 3. Nf3 {[%emt 0:00:07]} a6 {[%emt 0:00:12]} 4. Nc3 {[%emt 0:00:24]} b5 {[%emt 0:00:04]} 5. Bd3 {[%emt 0:00:11]} Bb7 {[%emt 0:00:07]} 6. O-O {[%emt 0:00:17]} d6 {[%emt 0:00:08]} 7. a4 {[%emt 0:00:17]} bxa4 {[%emt 0:00:36]} 8. Nxa4 {[%emt 0:01:38]} Nd7 {[%emt 0:00:14]} 9. Re1 {[%emt 0:01:46]} e5 {[%emt 0:01:12]} 10. d5 {[%emt 0:01:59]} Ne7 {[%emt 0:00:54]} 11. Be3 {[%emt 0:00:36]} O-O {[%emt 0:00:42]} 12. Qd2 {[%emt 0:01:02]} c6 {[%emt 0:02:09]} 13. c4 {[%emt 0:01:07]} c5 {[%emt 0:04:54]} 14. b4 {[%emt 0:01:12]} Rc8 {[%emt 0:02:32]} 15. Reb1 {[%emt 0:03:31]} Ba8 {[%emt 0:07:44]} 16. bxc5 {[%emt 0:00:57]} dxc5 {[%emt 0:00:27]} 17. Bg5 {[%emt 0:02:27]} f6 {[%emt 0:00:41]} 18. Bh6 {[%emt 0:00:56]} Rf7 {[%emt 0:02:52]} 19. Rb2 {[%emt 0:02:42]} f5 {[%emt 0:01:22]} 20. Bxg7 {[%emt 0:00:27]} Rxg7 {[%emt 0:00:53]} 21. Qc3 {[%emt 0:04:07]} Qc7 {[%emt 0:06:59]} 22. Ng5 Nf8 {[%emt 0:01:04]} 23. Nb6 {[%emt 0:12:46]} Rb8 {[%emt 0:07:18]} 24. Nxa8 {[%emt 0:01:41]} Rxa8 {[%emt 0:00:20]} 25. Rba2 {[%emt 0:00:26]} Qd6 {[%emt 0:01:45]} 26. Ra5 {[%emt 0:03:20]} Qf6 {[%emt 0:02:11]} 27. Nf3 {[%emt 0:00:53]} Nd7 {[%emt 0:02:10]} 28. Qa3 {[%emt 0:00:58]} fxe4 {[%emt 0:02:35]} 29. Bxe4 {[%emt 0:00:47]} Qf4 {[%emt 0:00:30]} 30. Re1 {[%emt 0:01:24]} Nf6 {[%emt 0:01:44]} 31. Qd3 {[%emt 0:02:23]} Nc8 {[%emt 0:01:10]} 32. d6 {[%emt 0:02:01]} Nxe4 {[%emt 0:01:40]} 33. Qd5+ {[%emt 0:03:07]} Rf7 {[%emt 0:06:00]} 34. Qxa8 {[%emt 0:03:17]} Nexd6 {[%emt 0:00:19]} 35. Rxa6 {[%emt 0:03:33]} Rf8 {[%emt 0:00:37]} 36. Qd5+ {[%emt 0:01:25]} Nf7 {[%emt 0:00:33]} 37. Nxe5 {[%emt 0:04:20]} Ne7 {[%emt 0:00:47]} 38. Qe6 {[%emt 0:00:00]} Qd4 {[%emt 0:01:37]} 39. Nxf7 {[%emt 0:03:09]} Rxf7 {[%emt 0:00:32]} 40. Ra8+ {[%emt 0:01:04]} Kg7 {[%emt 0:00:14]} 41. Qe5+ {[%emt 0:30:42]} Qxe5 {[%emt 0:30:18]} 42. Rxe5 {[%emt 0:00:07]} Nc6 {[%emt 0:00:26]} 43. Rxc5 {[%emt 0:00:59]} Nd4 {[%emt 0:00:10]} 44. f3 {[%emt 0:01:09]} Rb7 {[%emt 0:00:37]} 45. Ra2 {[%emt 0:03:41]} Re7 {[%emt 0:00:39]} 46. Kf2 {[%emt 0:00:32]} h5 {[%emt 0:00:20]} 47. Rd5 {[%emt 0:00:33]} Nc6 {[%emt 0:00:27]} 48. Rd6 {[%emt 0:00:59]} Nb4 {[%emt 0:01:47]} 49. Ra4 {[%emt 0:01:08]} Nc2 {[%emt 0:00:35]} 50. c5 {[%emt 0:01:12]} Kh6 {[%emt 0:01:20]} 51. c6 {[%emt 0:00:40]} Kg5 {[%emt 0:02:40]} 52. Rd7 {[%emt 0:01:13]} Re6 {[%emt 0:00:15]} 53. c7 {[%emt 0:01:00]} Rc6 {[%emt 0:00:07]} 54. Ra8 {[%emt 0:00:20]} Rxc7 {[%emt 0:02:22]} 55. Rxc7 {[%emt 0:00:21]} Nd4 {[%emt 0:00:04]} 56. Ra5+ {[%emt 0:00:34]} Nf5 {[%emt 0:00:12]} 57. h3 {[%emt 0:01:09]} h4 {[%emt 0:00:07]} 58. Rh7 {[%emt 0:00:52]} Kf6 {[%emt 0:01:03]} 59. Rxf5+ {[%emt 0:00:47]} Kxf5 {[%emt 0:00:12]} 60. Rxh4 {[%emt 0:00:06]} g5 {[%emt 0:00:07]} 61. Rg4 {[%emt 0:01:03]} Kf6 {[%emt 0:00:12]} 62. f4 {[%emt 0:00:19]} gxf4 {[%emt 0:00:28]} 63. Rxf4+ {[%emt 0:00:06]} Kg5 {[%emt 0:00:05]} 64. Kf3 {[%emt 0:00:45]} Kg6 {[%emt 0:00:13]} 65. g4 {[%emt 0:00:18]} Kg5 {[%emt 0:00:09]} 66. Kg3 {[%emt 0:00:05]} Kg6 {[%emt 0:00:10]} 67. h4 {[%emt 0:00:06]} Kh6 {[%emt 0:00:13]} 68. Rf5 {[%emt 0:00:37]} Kg7 {[%emt 0:00:13]} 69. Kf4 {[%emt 0:00:29]} Kh7 {[%emt 0:00:18]} 70. Rg5 {[%emt 0:00:14]} Kh8 {[%emt 0:00:33]} 71. Kf5 {[%emt 0:00:07]} Kh7 {[%emt 0:00:13]} 72. Kf6 {[%emt 0:00:08]} Kh8 {[%emt 0:00:43]} 73. Kf7 {[%emt 0:00:12]} Kh7 {[%emt 0:00:02]} 74. Rh5# {[%emt 0:00:06]} 1-0

[Event "DVM U12 2021-22"]
[Site "Naumburg"]
[Date "2022.03.28"]
[Round "6"]
[White "Börner, Eric"]
[Black "Teng, David"]
[Result "0-1"]
[ECO "B23"]
[WhiteElo "1134"]
[BlackElo "1334"]
[Annotator "COMBH"]
[PlyCount "70"]
[EventDate "2022.03.25"]
[EventType "team-tourn"]
[EventRounds "7"]
[EventCountry "GER"]
[SourceTitle "playchess.com"]
[Source "ChessBase"]
[SourceQuality "1"]
[TimeControl "40/5400+30:1800+30"]

1. e4 {[%emt 0:00:02]} c5 {[%emt 0:00:17]} 2. Nc3 {[%emt 0:00:09]} a6 {[%emt 0:00:11]} 3. a4 {[%emt 0:00:12]} Nc6 {[%emt 0:00:58]} 4. g3 {[%emt 0:00:52]} e6 {[%emt 0:01:00]} 5. Bg2 {[%emt 0:00:56]} Nf6 {[%emt 0:00:47]} 6. Nge2 {[%emt 0:00:50]} Be7 {[%emt 0:01:38]} 7. d3 {[%emt 0:00:58]} O-O {[%emt 0:03:11]} 8. O-O {[%emt 0:01:07]} d5 {[%emt 0:01:06]} 9. exd5 {[%emt 0:07:38]} exd5 {[%emt 0:01:09]} 10. d4 {[%emt 0:02:55]} c4 {[%emt 0:01:53]} 11. h3 {[%emt 0:02:42]} Bf5 {[%emt 0:02:23]} 12. Be3 {[%emt 0:03:56]} Qd7 {[%emt 0:01:50]} 13. Nf4 {[%emt 0:03:10]} Nb4 {[%emt 0:04:29]} 14. Rc1 {[%emt 0:02:49]} b5 {[%emt 0:04:13]} 15. axb5 {[%emt 0:04:03]} axb5 {[%emt 0:00:28]} 16. g4 {[%emt 0:03:54]} Bg6 {[%emt 0:03:54]} 17. Nxg6 {[%emt 0:03:06]} fxg6 {[%emt 0:04:44]} 18. f4 {[%emt 0:05:40]} Ne8 {[%emt 0:10:59]} 19. Qd2 {[%emt 0:04:08]} Nc7 {[%emt 0:03:00]} 20. Rf2 {[%emt 0:05:49]} Nc6 {[%emt 0:06:07]} 21. Rcf1 {[%emt 0:01:39]} b4 {[%emt 0:01:28]} 22. Ne2 {[%emt 0:03:21]} Rf7 {[%emt 0:07:32]} 23. c3 {[%emt 0:02:34]} bxc3 {[%emt 0:03:04]} 24. bxc3 {[%emt 0:00:15]} Na5 {[%emt 0:05:43]} 25. Ra1 {[%emt 0:03:10]} Rff8 {[%emt 0:04:00]} 26. Rff1 {[%emt 0:08:49]} Nb3 {[%emt 0:01:26]} 27. Rxa8 {[%emt 0:00:22]} Nxd2 {[%emt 0:00:45]} 28. Rxf8+ {[%emt 0:00:12]} Kxf8 {[%emt 0:00:19]} 29. Bxd2 {[%emt 0:00:10]} Qa4 {[%emt 0:01:55]} 30. Kf2 {[%emt 0:02:19]} Nb5 {[%emt 0:00:53]} 31. Bxd5 {[%emt 0:01:23]} Nc7 {[%emt 0:01:15]} 32. Bg2 {[%emt 0:04:10]} Qc2 {[%emt 0:02:08]} 33. Be3 {[%emt 0:01:17]} Bh4+ 34. Kf3 {[%emt 0:01:53]} Nd5 {[%emt 0:02:20]} 35. Rc1 {[%emt 0:02:15]} Qd3 {[%emt 0:00:52]} 0-1

[Event "DVM U12 2021-22"]
[Site "Naumburg"]
[Date "2022.03.28"]
[Round "6"]
[White "Streich, Alexander"]
[Black "Aaron Joel N"]
[Result "0-1"]
[ECO "C70"]
[WhiteElo "1129"]
[BlackElo "1197"]
[Annotator "COMBH"]
[PlyCount "42"]
[EventDate "2022.03.25"]
[EventType "team-tourn"]
[EventRounds "7"]
[EventCountry "GER"]
[SourceTitle "playchess.com"]
[Source "ChessBase"]
[SourceQuality "1"]
[TimeControl "40/5400+30:1800+30"]

1. e4 {[%emt 0:00:03]} e5 {[%emt 0:00:04]} 2. Nf3 {[%emt 0:00:11]} Nc6 {[%emt 0:00:10]} 3. Bb5 {[%emt 0:00:05]} a6 {[%emt 0:00:20]} 4. Ba4 {[%emt 0:00:04]} b5 {[%emt 0:00:24]} 5. Bb3 {[%emt 0:00:07]} Bc5 {[%emt 0:00:30]} 6. Bd5 {[%emt 0:00:40]} Nf6 {[%emt 0:00:29]} 7. Nxe5 {[%emt 0:00:15]} Nxd5 {[%emt 0:00:34]} 8. Nxc6 {[%emt 0:00:12]} dxc6 {[%emt 0:00:39]} 9. exd5 {[%emt 0:00:47]} cxd5 {[%emt 0:00:53]} 10. Qf3 {[%emt 0:00:15]} Qe7+ {[%emt 0:01:17]} 11. Kd1 {[%emt 0:01:40]} O-O {[%emt 0:00:42]} 12. Re1 {[%emt 0:00:40]} Qg5 {[%emt 0:00:45]} 13. h3 {[%emt 0:00:34]} Qf5 {[%emt 0:02:39]} 14. Qxf5 {[%emt 0:01:39]} Bxf5 {[%emt 0:00:13]} 15. Re5 {[%emt 0:00:06]} Bg6 {[%emt 0:00:38]} 16. f3 {[%emt 0:02:59]} c6 {[%emt 0:00:39]} 17. h4 {[%emt 0:01:01]} Rfe8 {[%emt 0:00:46]} 18. Rg5 {[%emt 0:00:57]} h6 {[%emt 0:00:33]} 19. Rg3 {[%emt 0:00:25]} Bf2 {[%emt 0:00:10]} 20. d3 {[%emt 0:01:13]} Bxg3 {[%emt 0:00:14]} 21. Nd2 {[%emt 0:01:06]} Re1# 0-1

[Event "DVM U12 2021-22"]
[Site "Naumburg"]
[Date "2022.03.28"]
[Round "6"]
[White "Könnecke, Maximilian"]
[Black "Pimenov, Danil"]
[Result "0-1"]
[ECO "A45"]
[WhiteElo "929"]
[BlackElo "1227"]
[Annotator "NA RC"]
[PlyCount "110"]
[EventDate "2022.03.25"]
[EventType "team-tourn"]
[EventRounds "7"]
[EventCountry "GER"]
[SourceTitle "playchess.com"]
[Source "ChessBase"]
[SourceQuality "1"]
[TimeControl "40/5400+30:1800+30"]

1. d4 {[%emt 0:00:05]} Nf6 {[%emt 0:00:08]} 2. c3 {[%emt 0:00:27]} g6 {[%emt 0:00:19]} 3. e3 {[%emt 0:00:09]} Bg7 {[%emt 0:00:10]} 4. f4 {[%emt 0:00:51]} d5 {[%emt 0:00:24]} 5. Nf3 {[%emt 0:00:43]} O-O {[%emt 0:00:15]} 6. Bd3 {[%emt 0:00:38]} Nbd7 {[%emt 0:00:50]} 7. Qc2 {[%emt 0:02:32]} c5 {[%emt 0:00:34]} 8. Nbd2 {[%emt 0:04:52]} c4 {[%emt 0:00:34]} 9. Be2 {[%emt 0:00:10]} b5 {[%emt 0:00:51]} 10. b4 {[%emt 0:02:49]} Bb7 {[%emt 0:00:54]} 11. O-O {[%emt 0:04:49]} a5 {[%emt 0:00:32]} 12. a3 {[%emt 0:02:37]} axb4 {[%emt 0:00:23]} 13. cxb4 {[%emt 0:00:13]} Nb6 {[%emt 0:00:37]} 14. Ne5 {[%emt 0:02:03]} Ne4 {[%emt 0:01:21]} 15. Rf3 {[%emt 0:03:56]} Qc8 {[%emt 0:05:09]} 16. Rh3 {[%emt 0:06:55]} f5 {[%emt 0:04:59]} 17. Ndf3 {[%emt 0:05:15]} e6 {[%emt 0:02:05]} 18. Bd2 {[%emt 0:05:08]} Nd7 {[%emt 0:02:02]} 19. Nxd7 {[%emt 0:02:34]} Qxd7 {[%emt 0:00:14]} 20. Qb2 {[%emt 0:01:47]} Bf6 {[%emt 0:02:40]} 21. Ne5 {[%emt 0:07:35]} Qc7 {[%emt 0:01:01]} 22. Bf3 {[%emt 0:01:00]} c3 {[%emt 0:00:58]} 23. Qc2 {[%emt 0:03:29]} Nxd2 {[%emt 0:01:03]} 24. Be2 {[%emt 0:02:34]} Bxe5 {[%emt 0:00:29]} 25. fxe5 {[%emt 0:00:19]} Ba6 {[%emt 0:00:49]} 26. Rh4 {[%emt 0:02:26]} Ne4 {[%emt 0:00:50]} 27. Bd3 {[%emt 0:06:09]} Rfc8 {[%emt 0:01:51]} 28. Bxe4 {[%emt 0:00:42]} dxe4 {[%emt 0:00:12]} 29. Qb3 {[%emt 0:01:16]} Qc4 {[%emt 0:00:14]} 30. Qxc4 {[%emt 0:02:00]} Rxc4 {[%emt 0:00:16]} 31. g4 {[%emt 0:01:47]} Bb7 {[%emt 0:01:07]} 32. g5 {[%emt 0:01:34]} c2 {[%emt 0:00:15]} 33. Rc1 {[%emt 0:00:04]} Rxa3 {[%emt 0:00:14]} 34. Rf4 {[%emt 0:03:39]} Rxe3 {[%emt 0:00:46]} 35. Rff1 {[%emt 0:01:17]} Re2 {[%emt 0:01:09]} 36. Rf2 {[%emt 0:02:10]} Rxf2 {[%emt 0:00:11]} 37. Kxf2 {[%emt 0:00:06]} Kf7 {[%emt 0:00:37]} 38. Ke2 {[%emt 0:00:25]} Bd5 {[%emt 0:00:16]} 39. Ke3 {[%emt 0:01:08]} Ke8 {[%emt 0:00:48]} 40. h3 {[%emt 0:01:22]} Kd7 {[%emt 0:00:12]} 41. h4 {[%emt 0:30:41]} Kc6 {[%emt 0:30:15]} 42. Kd2 {[%emt 0:01:34]} Rxd4+ {[%emt 0:01:21]} 43. Kc3 {[%emt 0:00:10]} Rc4+ {[%emt 0:00:21]} 44. Kb3 {[%emt 0:00:13]} f4 {[%emt 0:00:32]} 45. Rxc2 {[%emt 0:00:17]} Rxc2+ {[%emt 0:00:08]} 46. Kxc2 {[%emt 0:00:07]} Bc4 {[%emt 0:00:14]} 47. Kd2 {[%emt 0:00:12]} e3+ {[%emt 0:00:13]} 48. Kd1 {[%emt 0:00:31]} f3 {[%emt 0:00:09]} 49. Ke1 {[%emt 0:00:20]} f2+ {[%emt 0:00:07]} 50. Kd1 {[%emt 0:00:12]} f1=Q+ {[%emt 0:00:28]} 51. Kc2 {[%emt 0:00:13]} Qd3+ {[%emt 0:00:11]} 52. Kb2 {[%emt 0:00:12]} Qd2+ {[%emt 0:00:20]} 53. Kb1 {[%emt 0:00:50]} Bb3 {[%emt 0:00:07]} 54. h5 {[%emt 0:00:19]} Qc2+ {[%emt 0:00:05]} 55. Ka1 {[%emt 0:00:09]} Qc1# 0-1